{"text_format":"3","workbook":"xlsx","n_sheets":7,"sheets":["Combined","Tech Compliance","Midwall","Window type","Cassette","Floor Standing","Clip ons"],"read":"whole","date_system":"1900"}

{"sheet":"Combined","index":0,"n_rows":34,"n_cols":7,"rows_kept":34,"merged":[[0,0,2,0],[0,1,2,1],[0,2,2,2],[0,3,2,3],[0,4,2,4],[0,5,2,5],[0,6,2,6],[3,0,6,0],[3,3,6,3],[3,4,6,4],[3,5,6,5],[3,6,6,6],[7,0,11,0],[7,3,11,3],[7,4,11,4],[7,5,11,5],[7,6,11,6],[12,0,16,0],[12,3,16,3],[12,4,16,4],[12,5,16,5],[12,6,16,6],[17,0,19,0],[17,3,19,3],[17,4,19,4],[17,5,19,5],[17,6,19,6],[20,0,24,0],[20,3,24,3],[20,4,24,4],[20,5,24,5],[20,6,24,6],[25,0,28,0],[25,3,28,3],[25,4,28,4],[25,5,28,5],[25,6,28,6]]}
["Heading","Description and criteria","Points","Maximum points (Midwall, Window type, Casette, Floor standing types","Score","Maximum points - Clip-ons","Score"]
[]
[]
["Technical compliance/Proposal for each air conditioner type *","Bidder intepration of Broadband Infraco requirements, compliance there of and their responds to that and provisioning of the required brochure and other documentation",null,30,{"$f":"'Tech Compliance'!E8","v":0},30,{"$f":"'Tech Compliance'!J8","v":0}]
[null,"Poor - Mostly/All non- compliant to BBI requirements",0]
[null,"Average - Some compliant to BBI requirements",20]
[null,"Good - General compliant to BBI requirement with some brochures provided",30]
["Supplier Experience","The supplier shall be suitably experienced in supply of air conditioners\nProof: Supply a signed reference letter from the customer/s indicating:  Year, value of work done/contract specifically to air conditioners.",null,20,null,20]
[null,"No relevant experience",0]
[null,"One to three projects completed ",8]
[null,"Four to Six projects completed ",15]
[null,"Seven or more projects completed ",20]
["Experience and certification of Key staff","The key staff (different resources are acceptable) shall be suitably experienced to install, assemble, commission, maintained and troubleshoot air conditioners.\nSupply CV/s of technicians with relevant certifications of at least 1 technician to be an installer while other can be a trade tested Artisan for Installing and Maintaining Refrigeration system and to be  member/s of The South African Refrigeration & Air Conditioning Contractors Association  (SARACCA). Supply CV/s of technician/s with relevant certifications for a wireman’s licence certificate and able to issue certificate as per SANS-0142-1 for Single phase and or 3 phase air conditioners where required.",null,15,null,15]
[null,"Less than two years’ experience and CV/s provided",0]
[null,"Two to three years’ experience and CV/s provided",3]
[null,"Four to six years’ experience. Provide valid certificates, proof of membership of SARACCA and relevant CV/s.",10]
[null,"Seven or more years’ experience. Provide valid certificates, proof of membership of SARACCA and relevant CV/s.",15]
["Service Level Agreement","This criterion evaluates typical response times for emergency events. Indicate service level agreement on a signed company letter head. Copies not on company letter will not going to be considered i.e. no points will be allocated.",null,10,null,10]
[null,"Bidder only able to provide emergency response (technician onsite) \ntime in more than twenty 24hours /No information/Information not on a signed company letter head was supplied in the proposal",0]
[null,"Bidder can guarantee emergency response (technician onsite) times in \nless than twenty- four (24) hours.",10]
["Warrantee","Minimum 3 year warrantee with 5 year warrantee on compressor",null,15,null,15]
[null,"12 months or less warrentee",0]
[null,"12m to 24months warrentee  with <5 year warrantee on compressor",5]
[null,"12m to 24months warrentee  with 5 year warrantee on compressor",10]
[null,"3 year warrantee with 5 year warrantee on compressor",15]
["Lead Time","Indicate lead time from the contract award to delivery on a signed company letter head.\nCopies not on company letter will not going to be considered i.e. no points will be allocated.",null,10,null,10]
[null,"8 weeks and more ",0]
[null,"5 – 7 Weeks ",5]
[null,"2 – 4 Weeks ",10]
[{"$nulls":3},"Total",{"$f":"SUM(E4:E29)","v":0},"Total",{"$f":"SUM(G4:G29)","v":0}]
["* Technical compliance/Proposal for the following air conditioner type - Midwall, Window type, Casette, Floor standing types will be evaluated and the average score for these 4 different type of air conditioners wil be scored accordingly"]
["Minimum qualifying points is 75"]
["* Technical compliance/Proposal for Clip-ons will be evaluated and scored indivually"]
["Minimum qualifying points is 75"]

{"sheet":"Tech Compliance","index":1,"n_rows":8,"n_cols":11,"rows_kept":8,"merged":[[0,0,2,0],[0,1,2,1],[0,2,2,2],[0,3,2,3],[0,4,2,4],[0,5,2,5],[0,6,2,6],[0,7,2,7],[0,8,2,8],[0,9,2,9],[0,10,2,10],[3,0,6,0],[3,3,6,3],[3,4,6,4],[3,5,6,5],[3,6,6,6],[3,7,6,7],[3,8,6,8],[3,9,6,9],[3,10,6,10]]}
["Heading","Description and criteria","Points","Maximum points","Score  (Midwall, Window type, Casette, Floor standing types","Midwall","Window Type","Casette","Floor standing","Score  (Clip-ons types)","Clip ons"]
[]
[]
["Technical compliance/Proposal for each air conditioner type *","Bidder intepration of Broadband Infraco requirements, compliance there of and their responds to that and provisioning of the required brochure and other documentation",null,30,{"$f":"AVERAGE(F4:I7)","v":0},{"$f":"Midwall!G36","v":0},{"$f":"'Window type'!F31","v":0},{"$f":"Cassette!E33","v":0},{"$f":"'Floor Standing'!E33","v":0},{"$f":"K4","v":0},{"$f":"'Clip ons'!E26","v":0}]
[null,"Poor - Mostly/All non- compliant to BBI requirments",0]
[null,"Average - Some compliant to BBI requirements",20]
[null,"Good - General compliant to BBI requirement with some brochures provided",30]
[{"$nulls":3},"Total",{"$f":"SUM(E4)","v":0},{"$nulls":3},"Total",{"$f":"SUM(J4)","v":0}]

{"sheet":"Midwall","index":2,"n_rows":36,"n_cols":8,"rows_kept":36,"merged":[[0,0,0,4],[2,0,4,0],[2,1,4,1],[2,2,4,2],[2,3,4,3],[2,4,4,4],[2,5,4,5],[2,6,4,6],[2,7,4,7],[8,0,9,0],[8,1,9,1],[8,2,9,2],[8,3,9,3],[8,4,9,4],[8,5,9,5],[8,6,9,6],[8,7,9,7],[10,0,12,0],[10,2,12,2],[10,3,12,3],[10,4,12,4],[10,5,12,5],[10,6,12,6],[10,7,12,7],[13,0,16,0],[13,2,16,2],[13,3,16,3],[13,4,16,4],[13,5,16,5],[13,6,16,6],[13,7,16,7],[21,0,23,0],[21,2,23,2],[21,3,23,3],[21,4,23,4],[21,5,23,5],[21,6,23,6],[21,7,23,7],[27,0,28,0],[27,2,28,2],[27,3,28,3],[27,4,28,4],[27,5,28,5],[27,6,28,6],[27,7,28,7],[30,0,34,0],[30,2,34,2],[30,3,34,3],[30,4,34,4],[30,5,34,5],[30,6,34,6],[30,7,34,7]]}
["Technical compliance for Midwall Split units "]
["Heading","Requirement","Offered","Offered","Offered","Rating","Scoring","Comments"]
[null,null,"12 000 BTU","24 000BTU","32 000 - 36 000 BTU"]
[]
[]
["Rating in BTU","12 000, 24 000 and 32 000 - 36 000 BTU\nBidders all three ait con ratings as per above plus minus 10% - 3 points\nBidders bidding on  2 compliant air conditioners  plus minus 10% - 1 points\nBidders bidding on  1 compliant air conditioners  plus minus 10% - 0 points",{"$nulls":3},2]
["Fixed speed/Inverter","Fixed speed",{"$nulls":3},1]
["Voltage and phase","230V AC 50Hz Single phase",{"$nulls":3},1]
["Controllable via EAS (Environmental Alarm System)","The air conditioner should be able to go in a sleep mode when power is been cut and be switched on again when power has been restored to the specific air conditioner as been controlled by the on-site controller",{"$nulls":3},1]
[]
["Indoor Air flow",">600m3/h per air conditioner (12000 BTU)",{"$nulls":3},2]
[null,">1200m3/h per air conditioner (24000BTU)"]
[null,">1600m3/h per air conditioner (36000BTU)\nAll air condiners air flow more than 900m3/h - 5 point\nAir flow as follows - 10 points\n>600m3/h per air conditioner (12000 BTU)\n>1200m3/h per air conditioner (24000BTU)\n>1600m3/h per air conditioner (36000BTU)"]
["Dimensions indoor","Dimensions for offered indoor air conditioner",{"$nulls":3},2]
[null,"Midwall Split unit 12 000BTU: 900mm x 300mm x 210mm"]
[null,"3. Midwall Split unit 24 000BTU: 1110mm x 330mm x x 250mm"]
[null,"4. Midwall Split unit 32 000 - 48000 BTU: 1250mm x 400mm x 250mm"]
["Power consumption ","Provide power in Watts per air conditioner",{"$nulls":3},2]
["Duty cycle","Air conditioners shall be designed to  be of commercial type air conditioner ",{"$nulls":3},2]
["Auto restart","The air conditioner should be able to auto restart. When there is electricity failure the system shuts off. After restoration of the power, unit will start in the same set conditions prior to the power failure",{"$nulls":3},1]
["Dehumidification","The air conditioners should be able to dehumidification and or remove moisture from the air inside the required room and or contain",{"$nulls":3},1]
["Air flow directions","The air conditioners should have air flow direction control in the following directions",{"$nulls":3},2]
[null,"a. Horizontal (manual or auto); and "]
[null,"b. Vertical (auto)."]
["Anti-corrosion","Air conditioner should be equipped of anti-corrosion finish or coating for the outdoor units",{"$nulls":3},2]
["Auto cleaning","Air conditioner should have an auto cleaning function",{"$nulls":3},2]
["Refrigerant","Environment friendly refrigerant should be used. i.e R410",{"$nulls":3},2]
["Alarms","The air conditioner should be self-diagnostic and indicate the required error code and or message accordingly.",{"$nulls":3},2]
[]
["Maximum outdoor temperature range under cooling","Outdoor temperature to be at least 45 degrees and preferably 50 degrees Celsius\n5 point - 45 degrees or more\n10 points - 50 degrees or more",{"$nulls":3},3]
["Vandal proof cages","Provide specification and drawing and or image of  the offered vandal cages",{"$nulls":3},2]
[null,"Galvanised expanded metal mesh – raised"]
[null,"LWD = 28mm, SWD=14mm, Width=4,5mm, Thickness = 2.5mm"]
[null,"Lockable with Mul-T-Lock G-Series"]
[null," Sample prior manufacturing will be required."]
[{"$nulls":4},"Total",{"$f":"SUM(F6:F35)","v":30},{"$f":"SUM(G6:G35)","v":0}]

{"sheet":"Window type","index":3,"n_rows":31,"n_cols":7,"rows_kept":31,"merged":[[0,0,0,4],[2,0,4,0],[2,1,4,1],[2,2,4,2],[2,3,4,3],[2,4,4,4],[2,5,4,5],[2,6,4,6],[8,0,9,0],[8,1,9,1],[8,2,9,2],[8,3,9,3],[8,4,9,4],[8,5,9,5],[8,6,9,6],[10,0,11,0],[10,2,11,2],[10,3,11,3],[10,4,11,4],[10,5,11,5],[10,6,11,6],[13,0,16,0],[13,2,16,2],[13,3,16,3],[13,4,16,4],[13,5,16,5],[13,6,16,6],[20,0,22,0],[20,2,22,2],[20,3,22,3],[20,4,22,4],[20,5,22,5],[20,6,22,6],[26,0,27,0],[26,2,27,2],[26,3,27,3],[26,4,27,4],[26,5,27,5],[26,6,27,6]]}
["Technical compliance for Window wall units"]
["Heading","Requirement","Offered","Offered","Rating","Scoring","Comments"]
["Rating in BTU",null,"12 000 BTU","24000BTU "]
[]
[]
["Rating in BTU","12 000 and 24 000 BTU\nBidders all three air con ratings as per above plus minus 10% - 10 points\nBidders bidding on  1 compliant air conditioners  plus minus 10% - 5 points",null,null,2]
["Fixed speed/Inverter","Fixed speed",null,null,1]
["Voltage and phase","230V AC 50Hz Single phase",null,null,1]
["Controllable via EAS (Environmental Alarm System)","The air conditioner should be able to go in a sleep mode when power is been cut and be switched on again when power has been restored to the specific air conditioner as been controlled by the on-site controller",null,null,1]
[]
["Indoor Air flow",">450m3/h per air conditioner (12000 BTU)",null,null,2]
[null,">800m3/h per air conditioner (24000 BTU)\nAll air condiners air flow more than 450m3/h - 5 point\nAir flow as follows - 10 points\n>450m3/h per air conditioner (12000 BTU)\n>800m3/h per air conditioner (24000BTU)"]
["Power consumption ","Provide power in Watts per air conditioner",null,null,2]
["Dimensions ","Provide dimensions for offered air conditioner",null,null,2]
[null,"12 000BTU: 600mm x 380mm x 720mm"]
[null,"24 000BTU: 660mm x 428mm x 800mm"]
[]
["Duty cycle","Air conditioners shall be designed to  be of commercial type air conditioner",null,null,2]
["Auto restart","The air conditioner should be able to auto restart. When there is electricity failure the system shuts off. After restoration of the power, unit will start in the same set conditions prior to the power failure",null,null,1]
["Dehumidification","The air conditioners should be able to dehumidification and or remove moisture from the air inside the required room and or contain",null,null,1]
["Air flow directions","The air conditioners should have air flow direction control in the following directions",null,null,2]
[null,"a. Horizontal (manual or auto); and "]
[null,"b. Vertical (auto)."]
["Anti-corrosion","Air conditioner should be equipped of anti-corrosion finish or coating for the outdoor units",null,null,2]
["Auto cleaning","Air conditioner should have an auto cleaning function",null,null,2]
["Refrigerant","Environment friendly refrigerant should be used. i.e R410",null,null,2]
["Alarms","The air conditioner should be self-diagnostic and indicate the required error code and or message accordingly.",null,null,2]
[]
["Maximum outdoor temperature range under cooling","Outdoor temperature to be at least 45 degrees and preferably 50 degrees Celsius\n5 point - 45 degrees or more\n10 points - 50 degrees or more",null,null,3]
["Maintenance","The window wall units should include a slide-out chassis for easy wall mounting",null,null,2]
[{"$nulls":3},"Total",{"$f":"SUM(E1:E30)","v":30},{"$f":"SUM(F6:F30)","v":0}]

{"sheet":"Cassette","index":4,"n_rows":33,"n_cols":6,"rows_kept":33,"merged":[[0,0,0,4],[6,0,7,0],[6,1,7,1],[6,2,7,2],[6,3,7,3],[6,4,7,4],[6,5,7,5],[10,0,11,0],[10,1,11,1],[10,2,11,2],[10,3,11,3],[10,4,11,4],[10,5,11,5],[12,0,13,0],[12,1,13,1],[12,2,13,2],[12,3,13,3],[12,4,13,4],[12,5,13,5],[17,0,19,0],[17,2,19,2],[17,3,19,3],[17,4,19,4],[17,5,19,5],[24,0,25,0],[24,1,25,1],[24,2,25,2],[24,3,25,3],[27,0,31,0],[27,2,31,2],[27,3,31,3],[27,4,31,4],[27,5,31,5]]}
["Technical compliance for Cassette type units"]
["Heading","Requirement","Offered","Rating","Scoring","Comments"]
["Rating in BTU",null,"40 000-60000 BTU"]
["Rating in BTU","40 000 to 60 000 BTU\nBidders bidding on  1 compliant air conditioners  plus minus 10% - 5 points",null,2]
["Fixed speed/Inverter","Fixed speed",null,1]
["Voltage and phase","380V AC 50Hz Three phase",null,1]
["Controllable via EAS (Environmental Alarm System)","The air conditioner should be able to go in a sleep mode when power is been cut and be switched on again when power has been restored to the specific air conditioner as been controlled by the on-site controller",null,1]
[]
["Indoor Air flow",">1800m3/h per air conditioner\nAir flow as follows:\n>1800m3/h per air conditioner - 10 points\n>1200m3/h per air conditioner - 5 points",null,2]
["Power consumption ","Provide power in Watts per air conditioner",null,2]
["Indoor Dimensions","Provide dimensions for offered indoor air conditioner",null,2]
[]
["Outdoor Dimensions","Provide dimensions for offered outdoor air conditioner",null,1]
[]
["Duty cycle","Air conditioners shall be designed to  be of commercial type air conditioner",null,2]
["Auto restart","The air conditioner should be able to auto restart. When there is electricity failure the system shuts off. After restoration of the power, unit will start in the same set conditions prior to the power failure",null,1]
["Dehumidification","The air conditioners should be able to dehumidification and or remove moisture from the air inside the required room and or contain",null,1]
["Air flow directions","The air conditioners should have air flow direction control in the following directions",null,1]
[null,"a. Horizontal (manual or auto); and "]
[null,"b. Vertical (auto)."]
["Anti-corrosion","Air conditioner should be equipped of anti-corrosion finish or coating for the outdoor units",null,2]
["Auto cleaning","Air conditioner should have an auto cleaning function",null,2]
["Free cooling mode","Should have free cooling mode as optional item",null,1]
["Refrigerant","Environment friendly refrigerant should be used. i.e R410",null,2]
["Alarms","The air conditioner should be self-diagnostic and indicate the required error code and or message accordingly.",null,1]
[]
["Maximum outdoor temperature range under cooling","Outdoor temperature to be at least 45 degrees and preferably 50 degrees Celsius\n5 point - 45 degrees or more\n10 points - 50 degrees or more",null,3]
["Vandal proof cages","Provide specification and drawing and or image of  the offered vandal cages",null,2]
[null,"Galvanised expanded metal mesh – raised"]
[null,"LWD = 28mm, SWD=14mm, Width=4,5mm, Thickness = 2.5mm"]
[null,"Lockable with Mul-T-Lock G-Series"]
[null," Sample prior manufacturing will be required."]
[null,null,"Total",{"$f":"SUM(D4:D32)","v":30},{"$f":"SUM(E4:E27)","v":0}]

{"sheet":"Floor Standing","index":5,"n_rows":33,"n_cols":6,"rows_kept":33,"merged":[[0,0,0,2],[6,0,7,0],[6,1,7,1],[6,2,7,2],[6,3,7,3],[6,4,7,4],[6,5,7,5],[10,0,11,0],[10,1,11,1],[10,2,11,2],[10,3,11,3],[10,4,11,4],[10,5,11,5],[12,0,13,0],[12,1,13,1],[12,2,13,2],[12,3,13,3],[12,4,13,4],[12,5,13,5],[17,0,19,0],[17,2,19,2],[17,3,19,3],[17,4,19,4],[17,5,19,5],[24,0,25,0],[24,2,25,2],[24,3,25,3],[27,0,31,0],[27,2,31,2],[27,3,31,3],[27,4,31,4],[27,5,31,5]]}
["Technical compliance for  Floor Standing units"]
["Heading","Requirement","Offered","Rating","Scoring","Comments"]
["Rating in BTU",null,"48000- 60000BTU"]
["Rating in BTU","48000- 60000BTU\nBidders bidding on  1 compliant air conditioners  plus minus 10% - 5 points",null,2]
["Fixed speed/Inverter","Fixed speed",null,1]
["Voltage and phase","380V AC 50Hz Three phase",null,1]
["Controllable via EAS (Environmental Alarm System)","The air conditioner should be able to go in a sleep mode when power is been cut and be switched on again when power has been restored to the specific air conditioner as been controlled by the on-site controller",null,1]
[]
["Indoor Air flow",">1800m3/h per air conditioner\nAir flow as follows:\n>1800m3/h per air conditioner - 10 points\n>1200m3/h per air conditioner - 5 points",null,2]
["Power consumption ","Provide power in Watts per air conditioner",null,1]
["Indoor Dimensions","Provide dimensions for offered indoor air conditioner",null,2]
[]
["Outdoor Dimensions","Provide dimensions for offered outdoor air conditioner",null,1]
[]
["Duty cycle","Air conditioners shall be designed to  be of commercial type air conditioner",null,2]
["Auto restart","The air conditioner should be able to auto restart. When there is electricity failure the system shuts off. After restoration of the power, unit will start in the same set conditions prior to the power failure",null,1]
["Dehumidification","The air conditioners should be able to dehumidification and or remove moisture from the air inside the required room and or contain",null,1]
["Air flow directions","The air conditioners should have air flow direction control in the following directions",null,1]
[null,"a. Horizontal (manual or auto); and "]
[null,"b. Vertical (auto)."]
["Anti-corrosion","Air conditioner should be equipped of anti-corrosion finish or coating for the outdoor units",null,2]
["Auto cleaning","Air conditioner should have an auto cleaning function",null,2]
["Free cooling mode","Should have free cooling mode as optional item",null,1]
["Refrigerant","Environment friendly refrigerant should be used. i.e R410",null,2]
["Alarms","The air conditioner should be self-diagnostic and indicate the required error code and or message accordingly.",null,2]
[]
["Maximum outdoor temperature range under cooling","Outdoor temperature to be at least 45 degrees and preferably 50 degrees Celsius\n5 point - 45 degrees or more\n10 points - 50 degrees or more",null,3]
["Vandal proof cages","Provide specification and drawing and or image of  the offered vandal cages",null,2]
[null,"Galvanised expanded metal mesh – raised"]
[null,"LWD = 28mm, SWD=14mm, Width=4,5mm, Thickness = 2.5mm"]
[null,"Lockable with Mul-T-Lock G-Series"]
[null," Sample prior manufacturing will be required."]
[null,null,"Total",{"$f":"SUM(D4:D32)","v":30},{"$f":"SUM(E4:E27)","v":0}]

{"sheet":"Clip ons","index":6,"n_rows":26,"n_cols":6,"rows_kept":26,"merged":[[0,0,0,3],[6,0,7,0],[6,1,7,1],[6,2,7,2],[6,3,7,3],[6,4,7,4],[6,5,7,5],[10,0,11,0],[10,2,11,2],[10,3,11,3],[10,4,11,4],[10,5,11,5],[15,0,17,0],[15,2,17,2],[15,3,17,3],[15,4,17,4],[15,5,17,5],[22,0,23,0],[22,2,23,2],[22,3,23,3],[22,4,23,4],[22,5,23,5]]}
["Technical compliance for  Clip ons units"]
["Heading","Requirement","Offered","Rating","Scoring","Comments"]
["Rating in BTU",null,"32000-40000 BTU"]
["Rating in BTU","32 000 to 40 000 BTU\nBidders bidding on  1 compliant air conditioners  plus minus 10% - 5 points",null,2]
["Fixed speed/Inverter","Fixed speed",null,2]
["Voltage and phase","230V AC 50Hz Three phase",null,1]
["Controllable via EAS (Environmental Alarm System)","The air conditioner should be able to go in a sleep mode when power is been cut and be switched on again when power has been restored to the specific air conditioner as been controlled by the on-site controller",null,1]
[]
["Indoor Air flow",">1800m3/h per air conditioner\nAir flow as follows:\n>1800m3/h per air conditioner - 10 points\n>1200m3/h per air conditioner - 5 points",null,2]
["Power consumption ","Provide power in Watts per air conditioner",null,2]
["Dimensions ","Provide dimensions for offered air conditioner",null,2]
[null,"Maximum dimensions: 1150mmx2200x850mm"]
["Duty cycle","Air conditioners shall be designed to  be of commercial type air conditioner",null,2]
["Auto restart","The air conditioner should be able to auto restart. When there is electricity failure the system shuts off. After restoration of the power, unit will start in the same set conditions prior to the power failure",null,1]
["Dehumidification","The air conditioners should be able to dehumidification and or remove moisture from the air inside the required room and or contain",null,1]
["Air flow directions","The air conditioners should have air flow direction control in the following directions",null,2]
[null,"a. Horizontal (manual or auto); and "]
[null,"b. Vertical (auto)."]
["Anti-corrosion","Air conditioner should be equipped of anti-corrosion finish or coating for the outdoor units",null,2]
["Auto cleaning","Air conditioner should have an auto cleaning function",null,2]
["Free cooling mode","Should have free cooling mode as optional item",null,2]
["Refrigerant","Environment friendly refrigerant should be used. i.e R410",null,2]
["Alarms","The air conditioner should be self-diagnostic and indicate the required error code and or message accordingly.",null,2]
[]
["Maximum outdoor temperature range under cooling","Outdoor temperature to be at least 45 degrees and preferably 50 degrees Celsius\n5 point - 45 degrees or more\n10 points - 50 degrees or more",null,2]
[null,null,"Total",{"$f":"SUM(D4:D25)","v":30},{"$f":"SUM(E4:E25)","v":0}]